bitfinex/quotes_SOLUSD_20250930
["timestamp","ask_amount","ask_price","bid_price","bid_amount"]
[1759240494859,36.22,208.39,208.28,20.8]
[1759240495047,3.18313957,208.38,208.29,0.7]
[1759240495361,36.22,208.39,208.29,0.7]
[1759240495756,36.22,208.39,208.33,20.8]
[1759240495937,21.09408578,208.41,208.33,21.5]
[1759240496259,21.09408578,208.41,208.34,21.5]
[1759240496461,21.09408578,208.41,208.35,0.7]
[1759240497835,21.09408578,208.41,208.36,16.79784986]
[1759240498036,21.09408578,208.41,208.39,20.8]
[1759240498662,21.09408578,208.41,208.4,0.7]
[1759240498839,21.09408578,208.41,208.4,21.5]
[1759240499042,21.09408578,208.41,208.4,20.8]
[1759240499257,0.66,208.46,208.39,20.8]
[1759240500047,0.66,208.46,208.4,4.79846449]
[1759240500250,0.66,208.46,208.38,20.8]
[1759240500455,0.66,208.45,208.37,20.8]
[1759240500657,20.73831524,208.45,208.37,20.8]
[1759240500870,20.73831524,208.45,208.38,0.7]
[1759240501455,0.66,208.44,208.37,20.8]
[1759240502078,5.45757103,208.44,208.37,25.59894606]
[1759240502287,0.66,208.43,208.33,4.79986131]
[1759240502448,5.04022644,208.42,208.3,4.80076812]
[1759240502764,16.79143017,208.44,208.33,20.8]
[1759240502765,0.66,208.41,208.33,20.8]
[1759240503285,0.66,208.4,208.31,20.8]
[1759240503445,0.66,208.39,208.28,5.50100996]
[1759240503757,0.66,208.38,208.28,5.50100996]
[1759240503959,25.1228329,208.4,208.24,41.48171989]
[1759240503960,13.59559401,208.39,208.24,41.48171989]
[1759240504145,4.79938567,208.36,208.25,5.50172043]
[1759240504347,0.66,208.35,208.25,5.50172043]
[1759240504657,5.04022644,208.34,208.21,0.7]
[1759240504978,5.04022644,208.34,208.19,4.80330467]
[1759240504979,21.40260646,208.4,208.27,20.8]
[1759240505269,26.20109688,208.4,208.29,20.8]
[1759240505469,0.66,208.39,208.29,20.8]
[1759240505645,25.54109688,208.4,208.29,20.8]
[1759240505646,17.97582045,208.37,208.29,20.8]
[1759240505854,5.04022644,208.36,208.25,0.7]
[1759240506148,16.7986561,208.35,208.28,20.8]
[1759240506348,0.66,208.34,208.22,12.70633372]
[1759240506560,0.66,208.33,208.22,0.7]
[1759240506776,0.66,208.33,208.22,5.50260375]
[1759240506961,0.66,208.33,208.25,20.8]
[1759240507161,0.66,208.32,208.22,0.7]
[1759240507350,17.97582045,208.31,208.18,5.50351648]
[1759240507668,17.97582045,208.29,208.17,4.80374003]
[1759240507872,0.66,208.28,208.2,20.8]
[1759240508062,5.46124632,208.28,208.2,26.30284433]
[1759240508251,0.66,208.32,208.21,0.7]
[1759240508773,36.18,208.33,208.21,0.7]
[1759240508975,36.84,208.33,208.21,0.7]
[1759240509178,13.59559401,208.32,208.21,21.5]
[1759240509353,0.66,208.31,208.21,20.8]
[1759240509681,0.66,208.3,208.21,20.8]
[1759240509850,0.66,208.29,208.21,20.8]
[1759240510052,16.80270644,208.32,208.22,4.80261262]
[1759240510262,0.66,208.31,208.23,0.7]
[1759240510461,0.66,208.31,208.22,16.80914417]
[1759240510982,21.60301064,208.32,208.22,4.80261262]
[1759240511165,0.66,208.3,208.22,20.8]
[1759240511370,0.66,208.29,208.2,4.80306614]
[1759240511568,14.25559401,208.28,208.21,20.8]
[1759240511772,0.66,208.27,208.21,20.8]
[1759240512267,13.59559401,208.28,208.21,20.8]
[1759240512468,18.39686859,208.28,208.21,20.8]
[1759240512651,4.80095834,208.3,208.21,5.46283419]
[1759240512852,36.91,208.31,208.24,20.8]
[1759240513081,36.2,208.32,208.24,20.8]
[1759240513384,36.91,208.32,208.24,20.8]
[1759240513763,41.7104479,208.32,208.24,20.8]
[1759240513985,13.59559401,208.29,208.19,21.46]
[1759240514186,18.39705365,208.27,208.19,26.26325449]
[1759240514678,0.71,208.26,208.19,4.80325449]
[1759240514978,0.71,208.26,208.19,20.8]
[1759240515482,36.89,208.25,208.13,0.66]
[1759240515861,36.89,208.25,208.15,20.8]
[1759240516056,0.71,208.24,208.13,0.66]
[1759240516280,16.80833693,208.23,208.13,5.46468179]
[1759240516484,16.80833693,208.23,208.13,26.26468179]
[1759240516974,17.45833693,208.23,208.13,26.26468179]
[1759240517282,0.65,208.26,208.14,0.72]
[1759240517487,35.46,208.25,208.16,20.8]
[1759240517777,0.65,208.26,208.17,0.72]
[1759240518180,0.65,208.3,208.18,37.6123739]
[1759240518362,36.14,208.28,208.19,0.72]
[1759240518559,36.79,208.3,208.19,0.72]
[1759240518755,13.59559401,208.29,208.19,0.72]
[1759240519083,20.8,208.32,208.21,20.8]
[1759240519264,0.65,208.33,208.22,0.72]
[1759240519464,4.38022644,208.36,208.22,0.72]
[1759240519465,18.3952112,208.35,208.22,0.72]
[1759240519766,36.14,208.35,208.26,20.8]
[1759240519970,3.21094923,208.39,208.27,0.72]
[1759240519971,4.79896388,208.38,208.27,0.72]
[1759240520289,4.79896388,208.38,208.3,20.8]
[1759240520959,13.59559401,208.35,208.26,20.8]
[1759240521159,36.14,208.37,208.27,21.52]
[1759240521375,0.65,208.36,208.27,21.52]
[1759240521872,4.38022644,208.32,208.24,20.8]
[1759240522076,13.59559401,208.36,208.24,20.8]
[1759240522077,5.03022644,208.31,208.24,20.8]
[1759240522275,5.03022644,208.31,208.16,13.59559401]
[1759240522276,9.18122504,208.29,208.19,0.72]
[1759240522579,17.97582045,208.28,208.19,0.72]
[1759240522769,14.24559401,208.28,208.19,0.72]
[1759240523105,0.65,208.32,208.19,0.72]
[1759240523264,13.59559401,208.28,208.16,0.72]
[1759240523463,0.65,208.27,208.16,0.72]
[1759240524159,4.80192076,208.25,208.16,0.72]
[1759240524365,0.65,208.24,208.16,0.72]
[1759240524565,0.65,208.24,208.16,5.52398947]
[1759240525386,0.65,208.24,208.14,20.8]
[1759240525595,0.65,208.23,208.13,0.72]
[1759240525892,0.65,208.23,208.15,20.8]
[1759240526279,13.59559401,208.24,208.17,4.80376615]
[1759240526458,0.65,208.28,208.17,4.80376615]
[1759240526661,67.21073898,208.27,208.17,4.80376615]
[1759240526894,73.70103405,208.27,208.16,0.72]
[1759240527181,73.70103405,208.27,208.16,5.52398565]
[1759240527482,6.49029507,208.24,208.15,4.80420754]
[1759240527686,14.24559401,208.25,208.16,0.72]
[1759240528080,20.73588908,208.25,208.15,4.80420754]
[1759240528283,4.80215136,208.24,208.15,4.80420754]
[1759240528668,16.80752976,208.24,208.14,20.8]
[1759240528868,4.80215136,208.24,208.15,0.72]
[1759240529074,5.45215136,208.24,208.15,0.72]
[1759240529275,5.45215136,208.24,208.16,20.8]
[1759240529469,16.80752976,208.24,208.16,20.8]
[1759240529677,0.65,208.23,208.16,20.8]
[1759240530365,4.80261262,208.22,208.16,20.8]
[1759240530574,0.65,208.21,208.13,0.72]
[1759240530771,4.80261262,208.22,208.13,5.52466119]
[1759240531075,5.45213772,208.25,208.16,20.8]
[1759240531295,36.16,208.27,208.17,0.72]
[1759240531590,0.65,208.26,208.17,0.72]
[1759240531775,7.14029507,208.26,208.17,0.72]
[1759240532187,0.65,208.26,208.17,0.72]
[1759240532390,0.65,208.26,208.18,4.8035354]
[1759240532593,5.45169929,208.26,208.18,4.8035354]
[1759240533090,0.65,208.26,208.18,4.8035354]
[1759240533303,7.05943982,208.37,208.21,20.8]
[1759240533474,20.08588908,208.32,208.22,0.72]
[1759240533674,6.49029507,208.28,208.21,20.8]
[1759240533873,20.08588908,208.26,208.17,0.72]
[1759240534079,20.08588908,208.26,208.17,5.52375263]
[1759240534080,0.65,208.25,208.17,5.52375263]
[1759240534301,7.14029507,208.25,208.17,0.72]
[1759240534605,6.49029507,208.23,208.12,4.80476766]
[1759240534800,6.49029507,208.2,208.11,0.72]
[1759240534974,0.65,208.2,208.11,0.72]
[1759240535373,0.65,208.2,208.11,5.52512952]
[1759240536291,36.08,208.22,208.11,4.80512952]
[1759240536593,7.14029507,208.21,208.12,0.72]
[1759240536813,6.49029507,208.19,208.1,20.8]
[1759240536977,13.59559401,208.2,208.08,21.52]
[1759240536978,7.14029507,208.18,208.08,21.52]
[1759240537299,42.57029507,208.17,208.08,0.72]
[1759240537510,36.08,208.17,208.1,20.8]
[1759240537676,6.49029507,208.12,208.05,0.2]
[1759240537881,36.08,208.11,208.05,0.2]
[1759240538108,6.49029507,208.07,208.05,0.2]
[1759240538399,36.24,208.07,208.05,0.2]
[1759240538808,36.89,208.07,208.05,0.2]
[1759240539000,36.24,208.07,208.05,0.2]
[1759240539183,0.65,208.06,208.05,0.2]
[1759240539384,36.24,208.07,208.05,0.2]
[1759240539581,36.89,208.07,208.05,0.2]
[1759240539984,20.8,208.02,207.88,0.72]
[1759240540201,6.49029507,207.99,207.88,0.72]
[1759240540393,23.31964545,207.97,207.85,20.8]
[1759240540578,6.49029507,207.92,207.8,4.81231953]
[1759240540780,36.28,207.91,207.8,4.81231953]
[1759240540980,32.72684705,207.94,207.82,20.8]
[1759240541294,42.79029507,207.92,207.83,20.8]
[1759240541604,6.49029507,207.9,207.83,20.8]
[1759240541910,6.49029507,207.9,207.8,16.84311837]
[1759240542076,32.72684705,207.94,207.8,16.84311837]
[1759240542282,6.49029507,207.89,207.79,0.2]
[1759240542480,6.49029507,207.88,207.79,5.01252726]
[1759240542785,11.30076846,207.88,207.79,25.81252726]
[1759240543113,13.59559401,207.87,207.79,0.2]
[1759240543285,6.49029507,207.86,207.79,5.01252189]
[1759240543486,36.38,207.85,207.79,5.01252189]
[1759240544007,36.38,207.85,207.79,5.01252038]
[1759240544194,36.38,207.85,207.79,0.2]
[1759240544587,42.87029507,207.85,207.79,0.2]
[1759240544789,36.38,207.85,207.79,5.01253365]
[1759240545021,6.49029507,207.86,207.79,5.01253365]
[1759240545307,36.36,207.86,207.79,17.04391148]
[1759240545486,6.49029507,207.89,207.79,17.04391148]
[1759240545806,6.49029507,207.87,207.79,0.2]
[1759240546006,6.49029507,207.87,207.79,5.0124911]
[1759240546306,49.95559401,207.88,207.79,5.0124911]
[1759240546511,6.49029507,207.87,207.79,5.0124911]
[1759240546694,49.95559401,207.88,207.79,5.0124911]
[1759240546695,36.34,207.88,207.79,5.0124911]
[1759240547208,36.34,207.88,207.79,17.04386893]
[1759240547426,42.83029507,207.88,207.79,5.0124911]
[1759240547720,42.83029507,207.88,207.79,17.04386893]
[1759240548611,20.08588908,207.91,207.82,20.8]
[1759240548812,61.2156896,207.91,207.82,20.8]
[1759240549303,6.49029507,207.9,207.82,20.8]
[1759240549506,23.94989562,207.94,207.82,20.8]
[1759240549507,11.92684705,207.94,207.82,20.8]
[1759240549696,16.73598973,207.94,207.82,20.8]
[1759240549884,11.92684705,207.94,207.82,20.8]
[1759240550204,11.92684705,207.94,207.86,20.8]
[1759240550709,11.92684705,207.94,207.93,20.8]
[1759240551806,11.92684705,207.94,207.91,4.80977345]
[1759240552213,11.92684705,207.94,207.93,20.8]
[1759240552388,11.92684705,207.94,207.93,21.5]
[1759240552701,5.50561306,208.09,207.98,20.8]
[1759240552902,0.7,208.09,207.98,20.8]
[1759240553494,11.34,208.1,207.99,0.7]
[1759240553683,3.17505478,208.16,208.03,20.8]
[1759240553684,0.7,208.16,208.03,20.8]
[1759240553888,0.7,208.16,208.04,0.7]
[1759240554111,5.50400392,208.16,208.04,0.7]
[1759240554411,36.38,208.17,208.04,0.7]
[1759240554585,36.38,208.17,208.08,20.8]
[1759240554791,41.18378198,208.17,208.08,20.8]
[1759240555005,36.38,208.17,208.08,20.8]
[1759240555209,41.88377278,208.17,208.08,20.8]
[1759240555511,0.7,208.22,208.09,0.7]
[1759240555808,5.50264203,208.22,208.09,21.5]
[1759240555990,11.9929371,208.22,208.09,21.5]
[1759240556192,13.59559401,208.21,208.09,21.5]
[1759240556389,13.59559401,208.21,208.1,20.8]
[1759240556590,0.7,208.22,208.11,4.80515112]
[1759240557095,11.99293836,208.22,208.11,20.8]
[1759240557297,6.49029507,208.2,208.11,20.8]
[1759240557495,14.29559401,208.21,208.1,0.7]
[1759240558008,14.29559401,208.21,208.06,13.59559401]
[1759240558009,20.08588908,208.2,208.08,20.8]
[1759240558196,7.19029507,208.19,208.09,20.8]
[1759240558388,0.7,208.19,208.09,20.8]
[1759240558589,5.50331112,208.19,208.09,25.60543868]
[1759240559003,4.80331112,208.19,208.08,26.30583809]
[1759240559423,4.8026624,208.22,208.09,0.7]
[1759240559718,17.50767801,208.24,208.09,0.7]
[1759240559894,5.50229961,208.24,208.09,0.7]
[1759240560087,4.80229961,208.24,208.09,0.7]
[1759240560287,41.20192751,208.25,208.14,20.8]
[1759240560491,36.4,208.25,208.15,0.7]
[1759240560706,41.20192889,208.25,208.18,20.8]
[1759240560909,36.4,208.25,208.18,20.8]
[1759240561227,0.7,208.26,208.16,20.8]
[1759240561426,4.80147286,208.27,208.18,20.8]
[1759240561924,4.80053766,208.31,208.19,0.7]
[1759240562806,5.50053766,208.31,208.2,4.80307396]
[1759240563030,17.50188181,208.31,208.19,0.7]
[1759240563195,0.7,208.3,208.2,20.8]
[1759240563394,41.12031186,208.32,208.21,0.7]
[1759240563714,41.82031186,208.32,208.22,20.8]
[1759240564308,37.02,208.32,208.23,0.7]
[1759240564514,0.7,208.36,208.23,0.7]
[1759240564902,0.7,208.36,208.26,20.8]
[1759240564903,4.79961603,208.35,208.26,20.8]
[1759240565408,6.49029507,208.39,208.26,20.8]
[1759240565409,20.74260646,208.4,208.28,20.8]
[1759240565595,20.74260646,208.4,208.29,0.7]
[1759240566195,0.7,208.39,208.28,20.8]
[1759240566417,7.19029507,208.38,208.26,20.8]
[1759240566611,0.7,208.37,208.26,20.8]
[1759240566924,0.7,208.36,208.26,20.8]
[1759240567229,0.7,208.35,208.24,26.30208386]
[1759240567522,0.7,208.35,208.26,20.8]
[1759240568024,0.7,208.35,208.27,20.8]
[1759240568215,4.79915534,208.37,208.27,21.5]
[1759240568946,36.98,208.38,208.28,4.80122911]
[1759240569119,36.98,208.38,208.28,5.50122911]
[1759240569315,36.28,208.38,208.28,16.80430189]
[1759240569621,41.07894884,208.38,208.29,0.7]
[1759240569821,0.7,208.37,208.29,20.8]
[1759240570128,41.07894345,208.38,208.29,20.8]
[1759240570304,5.49869851,208.39,208.31,20.8]
[1759240570500,20.74260646,208.4,208.31,20.8]
[1759240570720,20.74260646,208.4,208.31,21.5]
[1759240571024,25.54109298,208.4,208.31,21.5]
[1759240571317,25.54109298,208.4,208.31,26.30050455]
[1759240571708,25.54109298,208.4,208.31,5.50048376]
[1759240571906,20.74260646,208.4,208.31,17.50182791]
[1759240572106,20.74260646,208.4,208.32,0.7]
[1759240572313,20.74260646,208.4,208.32,21.5]
[1759240572511,20.74260646,208.4,208.34,20.8]
[1759240572699,20.74260646,208.4,208.35,0.67]
[1759240572897,20.74260646,208.4,208.37,4.79915534]
[1759240573213,20.74260646,208.4,208.37,20.8]
[1759240573418,0.2,208.45,208.41,20.8]
[1759240573598,0.2,208.56,208.45,20.8]
[1759240573796,2.74,208.55,208.45,20.8]
[1759240574001,0.2,208.56,208.49,20.8]
[1759240574200,13.02,208.55,208.49,20.8]
[1759240574398,0.2,208.56,208.49,20.8]
[1759240574634,22.32,208.55,208.49,20.8]
[1759240574802,0.65,208.54,208.43,0.15]
[1759240575003,5.44526751,208.54,208.46,20.8]
[1759240575496,5.44526751,208.54,208.47,20.8]
[1759240575701,0.65,208.53,208.47,20.8]
[1759240576019,0.65,208.53,208.3,51.16592845]
[1759240576020,0.65,208.52,208.35,0.15]
[1759240576631,36.5,208.51,208.35,0.15]
[1759240576816,0.65,208.5,208.4,20.8]
[1759240577020,0.65,208.5,208.44,20.8]
[1759240577320,0.65,208.49,208.44,20.8]
[1759240577520,36.5,208.48,208.41,0.15]
[1759240577721,0.65,208.53,208.41,0.15]
[1759240577901,36.5,208.52,208.41,0.15]
[1759240578101,0.65,208.53,208.41,0.15]
[1759240578332,0.65,208.53,208.44,20.8]
[1759240578523,36.5,208.52,208.44,20.8]
[1759240579009,36.5,208.52,208.4,11.99616122]
[1759240579010,4.79616306,208.5,208.4,11.99616122]
[1759240579216,0.65,208.49,208.41,25.59823424]
[1759240579413,36.48,208.48,208.41,37.59381986]
[1759240579712,0.65,208.52,208.42,13.59559401]
[1759240579907,25.44,208.51,208.41,16.79381986]
[1759240580105,26.09,208.51,208.44,20.8]
[1759240580625,36.5,208.5,208.44,20.8]
[1759240581008,5.44597145,208.51,208.45,4.7973135]
[1759240581202,37.13,208.5,208.38,13.59559401]
[1759240581434,0.65,208.49,208.4,20.8]
[1759240581819,36.46,208.48,208.4,20.8]
[1759240582006,37.11,208.47,208.4,20.8]
[1759240582704,36.46,208.47,208.4,20.8]
[1759240582902,36.44,208.46,208.4,20.8]
[1759240583221,36.44,208.46,208.44,20.8]
[1759240583728,0.65,208.5,208.44,20.8]
[1759240584027,36.42,208.49,208.44,20.8]
[1759240584226,37.07,208.49,208.44,20.8]
[1759240584426,0.65,208.49,208.44,20.8]
[1759240584605,36.4,208.48,208.44,20.8]
[1759240584920,37.09,208.48,208.44,20.8]
[1759240585116,36.38,208.47,208.44,25.59735125]
[1759240585324,0.69,208.52,208.44,4.79735125]
[1759240585627,36.38,208.51,208.44,4.79735125]
[1759240585825,0.69,208.52,208.47,20.8]
[1759240586005,0.69,208.55,208.47,20.8]
[1759240586200,36.38,208.54,208.47,20.8]
[1759240586621,36.38,208.53,208.47,20.8]
[1759240586817,0.69,208.55,208.47,20.8]
[1759240587208,36.36,208.54,208.48,4.79662317]
[1759240587410,4.99480451,208.56,208.48,4.79662317]
[1759240587411,0.2,208.56,208.51,20.8]
[1759240587613,0.2,208.56,208.48,16.78818111]
[1759240587614,0.2,208.56,208.52,20.8]
[1759240587825,0.89,208.56,208.52,20.8]
[1759240588131,0.69,208.55,208.48,16.78818111]
[1759240588309,0.69,208.55,208.51,20.8]
[1759240588710,0.69,208.54,208.51,20.8]
[1759240588918,36.42,208.53,208.51,20.8]
[1759240589426,0.2,208.56,208.51,25.59579368]
[1759240589622,37.09,208.55,208.51,25.59579368]
[1759240590011,0.69,208.54,208.51,20.8]
[1759240590210,0.2,208.56,208.51,25.59590828]
[1759240590425,36.38,208.53,208.51,25.59590828]
[1759240590733,36.38,208.53,208.51,20.8]
[1759240590932,37.07,208.53,208.51,20.8]
[1759240591231,36.38,208.53,208.46,37.5897918]
[1759240591457,0.89,208.56,208.5,20.8]
[1759240591727,36.38,208.53,208.5,20.8]
[1759240591908,0.2,208.56,208.5,20.8]
[1759240592104,36.56,208.56,208.5,20.8]
[1759240592635,36.58,208.56,208.5,20.8]
[1759240593238,0.69,208.55,208.44,0.15]
[1759240593414,36.42,208.54,208.49,20.8]
[1759240594036,0.69,208.54,208.46,20.8]
[1759240594330,20.68,208.55,208.5,20.8]
[1759240594714,0.69,208.54,208.5,20.8]
[1759240594907,0.69,208.54,208.41,12.14558562]
[1759240594908,0.69,208.53,208.45,20.8]
[1759240595129,20.68,208.55,208.45,20.8]
[1759240595324,0.2,208.56,208.49,20.8]
[1759240597322,0.2,208.56,208.5,16.78657073]
[1759240598526,0.89,208.56,208.5,16.78657073]
[1759240598919,0.2,208.56,208.53,20.8]
[1759240599119,0.2,208.56,208.53,20.95]
[1759240599318,0.2,208.56,208.54,4.79524311]
[1759240599946,0.2,208.56,208.55,0.15]
[1759240600443,0.2,208.61,208.55,0.15]
[1759240601235,0.2,208.61,208.56,16.78174145]
[1759240601456,0.69,208.6,208.48,0.15]
[1759240601617,3.86767837,208.6,208.51,20.8]
[1759240601939,0.69,208.59,208.46,4.94688292]
[1759240602148,8.2440085,208.58,208.44,36.46]
[1759240602315,8.2740085,208.57,208.43,4.94770335]
[1759240602515,3.89767837,208.56,208.43,0.15]
[1759240602731,3.89767837,208.56,208.29,34.58]
[1759240602732,4.37853402,208.53,208.46,4.37853402]
[1759240602940,3.89767837,208.52,208.47,4.37853402]
[1759240603132,3.89767837,208.51,208.47,4.37853402]
[1759240603357,4.37853402,208.49,208.43,20.8]
[1759240603658,4.37853402,208.49,208.44,20.8]
[1759240603861,3.91215602,208.48,208.44,20.8]
[1759240604164,3.91236411,208.47,208.41,4.37853402]
[1759240604345,3.19236411,208.46,208.41,4.37853402]
[1759240604553,0.72,208.47,208.41,4.37853402]
[1759240604861,3.19660279,208.46,208.41,4.37853402]
[1759240605066,0.72,208.47,208.41,4.37853402]
[1759240605267,3.19713015,208.46,208.44,20.8]
[1759240605470,9.89505289,208.49,208.44,20.8]
[1759240605651,3.91712788,208.48,208.41,4.37853402]
[1759240605847,3.19712788,208.47,208.41,4.37853402]
[1759240606050,7.5756619,208.46,208.38,4.79870171]
[1759240606246,16.78750165,208.49,208.39,4.37853402]
[1759240606247,3.19712788,208.45,208.39,4.37853402]
[1759240606486,16.78750165,208.49,208.39,4.37853402]
[1759240606487,3.19712788,208.44,208.4,20.8]
[1759240606656,3.20025741,208.43,208.4,20.8]
[1759240606846,0.72,208.43,208.4,20.8]
[1759240607043,4.37853402,208.44,208.37,4.37853402]
[1759240607243,4.37853402,208.42,208.35,4.37853402]
[1759240607464,4.37853402,208.38,208.3,18.99759984]
[1759240607643,4.37853402,208.37,208.3,18.99759984]
[1759240607847,4.37853402,208.37,208.3,9.17929899]
[1759240608063,4.37853402,208.35,208.28,9.17953816]
[1759240608255,4.37853402,208.31,208.26,36.42]
[1759240608461,0.72,208.3,208.24,4.80205352]
[1759240608642,4.37853402,208.31,208.24,9.18058754]
[1759240608992,5.09853402,208.33,208.26,4.37853402]
[1759240609164,4.37853402,208.34,208.27,25.17853402]
[1759240609338,3.20864908,208.33,208.31,20.8]
[1759240609539,5.09853402,208.34,208.31,20.8]
[1759240609762,0.72,208.33,208.31,20.8]
[1759240610069,0.72,208.32,208.3,20.8]
[1759240610278,0.72,208.31,208.25,9.18022567]
[1759240610576,0.72,208.31,208.28,20.8]
[1759240611274,4.37853402,208.33,208.28,20.8]
[1759240611275,3.20879117,208.32,208.28,20.8]
[1759240611477,4.37853402,208.35,208.3,4.80076812]
[1759240611979,0.72,208.34,208.3,4.80076812]
[1759240612477,7.58695676,208.36,208.3,9.17930214]
[1759240612679,4.37853402,208.38,208.33,20.8]
[1759240612885,5.09853402,208.37,208.33,20.8]
[1759240613065,7.58695676,208.38,208.32,20.8]
[1759240613261,5.09853402,208.38,208.32,25.17853402]
[1759240613475,5.09853402,208.38,208.32,29.97873252]
[1759240613677,4.37853402,208.37,208.34,20.8]
[1759240613879,5.09853402,208.37,208.34,20.8]
[1759240614081,4.37853402,208.35,208.34,20.8]
[1759240614284,5.09853402,208.35,208.29,25.60099336]
[1759240614460,5.09853402,208.35,208.31,20.8]
[1759240614660,4.37853402,208.32,208.26,4.37853402]
[1759240614859,16.79624201,208.38,208.24,4.80192766]
[1759240614860,4.37853402,208.3,208.24,4.80192766]
[1759240615078,4.37853402,208.27,208.23,0.1]
[1759240615391,4.37853402,208.27,208.23,4.90237543]
[1759240615560,0.72,208.26,208.23,0.1]
[1759240616080,0.72,208.29,208.23,4.90234538]
[1759240616382,4.37853402,208.27,208.23,0.1]
[1759240616780,0.72,208.27,208.24,20.8]
[1759240616988,11.99903862,208.36,208.24,20.8]
[1759240616989,5.09853402,208.3,208.24,20.8]
[1759240617180,5.09853402,208.3,208.23,4.90230964]
[1759240617380,5.09853402,208.29,208.23,4.90230964]
[1759240618258,5.09853402,208.29,208.23,0.1]
[1759240618464,0.72,208.28,208.23,0.1]
[1759240618681,0.72,208.27,208.23,0.1]
[1759240618880,0.72,208.27,208.23,4.90235535]
[1759240619081,0.72,208.26,208.23,4.90235535]
[1759240619591,0.72,208.26,208.25,20.8]
[1759240620388,37.06,208.29,208.25,20.8]
[1759240620585,0.72,208.28,208.25,20.8]
[1759240620893,0.72,208.27,208.25,20.8]
[1759240621073,0.72,208.26,208.23,0.1]
[1759240621277,0.72,208.25,208.24,20.8]
[1759240621689,0.72,208.28,208.24,25.60212475]
[1759240621993,0.72,208.27,208.24,25.60212475]
[1759240622778,0.72,208.27,208.24,20.8]
[1759240622980,36.28,208.28,208.24,20.8]
[1759240623290,5.09853402,208.26,208.23,0.1]
[1759240623464,9.18068538,208.24,208.23,0.1]
[1759240623670,9.18068538,208.24,208.15,4.37853402]
[1759240623977,4.37853402,208.18,208.07,27.17]
[1759240624182,28.46,208.19,208.13,4.37853402]
[1759240624695,0.72,208.2,208.13,4.37853402]
[1759240624996,36.24,208.2,208.11,20.8]
[1759240625174,36.96,208.2,208.13,25.17853402]
[1759240625593,0.72,208.2,208.16,4.80399692]
[1759240625969,0.72,208.19,208.13,9.18321444]
[1759240626176,0.72,208.18,208.13,9.18321444]
[1759240626388,0.72,208.17,208.13,9.18321444]
[1759240626593,0.72,208.22,208.15,4.37853402]
[1759240626791,0.72,208.21,208.13,21.19493788]
[1759240626985,5.09853402,208.2,208.13,9.18321444]
[1759240627188,0.72,208.19,208.12,4.80490668]
[1759240627396,0.72,208.19,208.15,20.8]
[1759240627609,0.72,208.19,208.16,4.80399692]
[1759240627779,36.26,208.21,208.17,4.37853402]
[1759240627974,0.72,208.23,208.17,4.37853402]
[1759240628303,36.24,208.22,208.17,4.37853402]
[1759240628478,36.96,208.22,208.17,4.37853402]
[1759240628678,0.72,208.21,208.17,4.37853402]
[1759240629012,4.37853402,208.23,208.16,4.80399692]
[1759240629299,0.72,208.21,208.16,4.80399692]
[1759240629608,4.37853402,208.19,208.12,4.37853402]
[1759240629776,4.37853402,208.17,208.11,20.8]
[1759240629974,0.72,208.16,208.11,20.8]
[1759240630176,36.94,208.16,208.11,20.8]